bitfinex-derivatives/quotes_ETHF0:USTF0_20240915
["timestamp","ask_amount","ask_price","bid_price","bid_amount"]
[1726419897165,3.2078,2393.0,2392.8,1.09061113]
[1726419897367,3.2078,2393.0,2392.9,0.3985]
[1726419897563,3.2078,2393.0,2392.9,0.8038]
[1726419898382,5.13558,2393.0,2392.9,0.3985]
[1726419898569,9.55008,2393.0,2392.9,0.3985]
[1726419898868,0.41781,2392.8,2392.6,0.3985]
[1726419899172,1.51,2392.8,2392.6,0.3985]
[1726419899363,1.51,2392.9,2392.6,0.3985]
[1726419899558,4.7178,2393.0,2392.7,0.41782]
[1726419900361,3.2078,2393.0,2392.6,1.9085]
[1726419900566,4.132,2393.4,2392.6,1.9085]
[1726419900567,3.2078,2393.4,2393.2,0.41773]
[1726419900767,4.7178,2393.7,2393.3,0.3922]
[1726419900971,4.7178,2393.7,2393.3,1.2016]
[1726419901469,0.41769,2393.5,2393.3,1.2016]
[1726419901667,1.92769,2393.5,2393.3,1.2016]
[1726419902370,8.8962,2393.4,2393.1,0.418]
[1726419902567,1.51,2393.3,2393.1,0.418]
[1726419902767,0.41774,2393.2,2393.1,0.418]
[1726419903259,4.59614,2393.2,2393.1,0.418]
[1726419903971,7.85614,2393.2,2393.1,0.418]
[1726419904273,3.67774,2393.2,2393.1,0.418]
[1726419905168,7.85614,2393.2,2393.1,0.418]
[1726419906071,13.85614,2393.2,2393.1,0.418]
[1726419906972,0.41782,2392.8,2392.6,0.4176]
[1726419907173,3.62562,2392.8,2392.6,0.4176]
[1726419907370,3.62562,2392.8,2392.5,0.7883]
[1726419907570,3.86072,2392.8,2392.5,0.7883]
[1726419908570,3.2078,2392.8,2392.5,4.0483]
[1726419908771,3.2078,2392.8,2392.7,0.41783]
[1726419908961,0.41774,2393.2,2392.7,0.41783]
[1726419909164,0.41776,2393.1,2392.8,0.4154]
[1726419909364,3.62558,2393.0,2392.8,0.4154]
[1726419909674,3.2078,2393.0,2392.8,0.8332]
[1726419909871,0.41774,2393.2,2392.8,0.8332]
[1726419911478,6.4678,2393.3,2392.8,0.8332]
[1726419911479,0.41776,2393.1,2392.8,0.8332]
[1726419911668,0.41775,2393.2,2392.8,0.8332]
[1726419911868,0.41775,2393.2,2392.9,0.41779]
[1726419912070,0.41775,2393.2,2393.0,0.7761]
[1726419912270,3.2078,2393.3,2393.0,0.7761]
[1726419912465,3.2078,2393.3,2393.2,0.41774]
[1726419912666,3.2078,2393.3,2393.2,3.25069106]
[1726419913181,3.62548,2393.6,2393.2,5.29004837]
[1726419913389,0.41769,2393.5,2393.4,1.09556644]
[1726419913569,0.41769,2393.5,2393.3,1.09556644]
[1726419913770,0.41769,2393.5,2393.2,1.49205625]
[1726419913971,3.62548,2393.6,2393.2,1.90978625]
[1726419914166,3.2078,2393.6,2393.3,0.41772]
[1726419914676,6.4678,2393.6,2393.2,1.49205625]
[1726419914872,0.4177,2393.5,2393.2,1.49205625]
[1726419915281,0.4177,2393.5,2393.2,1.90979625]
[1726419915476,0.4177,2393.5,2393.2,1.49205625]
[1726419916769,6.4678,2393.6,2393.2,1.49205625]
[1726419916974,6.4678,2393.6,2393.2,1.90979625]
[1726419916975,6.88549,2393.6,2393.2,1.90979625]
[1726419917170,3.62549,2393.6,2393.2,1.90979625]
[1726419917675,3.62549,2393.6,2393.2,0.81374]
[1726419918074,0.41769,2393.5,2393.2,0.81374]
[1726419918781,0.41771,2393.4,2393.2,0.396]
[1726419919488,0.41772,2393.3,2393.2,0.396]
[1726419919688,0.41772,2393.4,2393.2,0.396]
[1726419920276,0.4177,2393.5,2393.2,0.396]
[1726419921285,0.41771,2393.4,2393.2,0.396]
[1726419922185,3.2078,2393.3,2393.2,0.396]
[1726419922388,3.2078,2393.3,2393.2,0.81374]
[1726419923377,3.4951,2393.7,2393.2,0.396]
[1726419923378,3.2078,2393.6,2393.2,0.396]
[1726419923783,0.41771,2393.4,2393.2,0.396]
[1726419924386,0.41776,2393.1,2393.0,0.3999]
[1726419924585,3.67776,2393.1,2393.0,0.3999]
[1726419924886,7.85616,2393.1,2393.0,0.3999]
[1726419925090,0.41776,2393.1,2393.0,0.3999]
[1726419925789,4.59616,2393.1,2393.0,0.3999]
[1726419927786,0.41775,2393.2,2393.0,0.3999]
[1726419929092,3.62553,2393.3,2393.0,0.3999]
[1726419929790,3.2078,2393.3,2393.0,0.3999]
[1726419930084,3.495,2393.6,2393.1,0.41776]
[1726419930085,0.41769,2393.5,2393.1,0.41776]
[1726419930289,0.41769,2393.5,2393.2,0.417]
[1726419930589,3.62548,2393.6,2393.2,0.7969]
[1726419931391,0.41769,2393.5,2393.2,0.7969]
[1726419932392,6.4678,2393.6,2393.2,0.7969]
[1726419932590,0.2352,2393.5,2393.2,0.7969]
[1726419933188,0.4177,2393.5,2393.2,0.7969]
[1726419933388,6.88548,2393.6,2393.2,1.21464]
[1726419934686,0.41769,2393.5,2393.2,0.7969]
[1726419935794,6.88548,2393.6,2393.2,1.21464]
[1726419936495,6.88548,2393.6,2393.2,0.7969]
[1726419936991,6.88548,2393.6,2393.2,1.21464]
[1726419937591,3.2078,2393.6,2393.3,0.41772]
[1726419937784,3.62547,2393.6,2393.2,1.21463]
[1726419938092,6.4678,2393.6,2393.2,0.7969]
[1726419938298,6.88548,2393.6,2393.2,1.21464]
[1726419938691,3.62548,2393.6,2393.2,1.21464]
[1726419938997,3.2078,2393.6,2393.3,0.41772]
[1726419939196,3.2078,2393.6,2393.2,1.89246644]
[1726419939392,3.2078,2393.6,2393.4,0.4177]
[1726419939593,3.2078,2393.6,2393.5,0.3762]
[1726419940290,0.41763,2393.9,2393.5,0.79389]
[1726419940599,3.62545,2393.7,2393.6,0.413]
[1726419940796,3.2078,2393.7,2393.5,0.3762]
[1726419941097,3.62546,2393.7,2393.5,0.3762]
[1726419941801,3.2078,2393.7,2393.5,0.3762]
[1726419942800,3.67767,2393.6,2393.5,0.3762]
[1726419943105,3.67767,2393.6,2393.3,0.413]
[1726419943106,0.41769,2393.5,2393.3,0.413]
[1726419943414,3.91278,2393.6,2393.3,0.413]
[1726419943701,4.1784,2393.5,2393.2,1.93030644]
[1726419943892,0.41776,2393.1,2392.8,4.149]
[1726419944091,3.2078,2393.0,2392.6,1.1967]
[1726419945007,3.62558,2393.0,2392.6,1.1967]
[1726419945294,3.62558,2393.0,2392.6,1.61454]
[1726419946506,3.62558,2393.0,2392.6,1.1967]
[1726419946888,0.4178,2392.9,2392.6,1.1967]
[1726419947298,6.4678,2393.0,2392.6,1.1967]
[1726419947799,3.2078,2392.7,2392.6,0.7958]
[1726419948602,0.4178,2392.9,2392.6,0.7958]
[1726419949802,3.2078,2392.7,2392.6,0.7958]
[1726419951900,2.58070012,2392.7,2392.6,2.55193551]
[1726419952702,1.04411,2393.8,2392.6,12.60108801]
[1726419952703,3.26,2393.3,2392.6,12.60108801]
[1726419952900,3.62557,2393.1,2392.8,1.09428989]
[1726419953203,3.2078,2393.1,2392.9,0.4062]
[1726419953601,3.62557,2393.1,2393.0,0.4058]
[1726419954210,6.703,2393.4,2393.0,0.4058]
[1726419954512,0.41775,2393.2,2393.1,0.4168]
[1726419959815,0.41775,2393.2,2393.0,0.4058]
[1726419959816,0.41776,2393.1,2393.0,0.4058]
[1726419960208,3.67775,2393.2,2393.0,0.4058]
[1726419961202,3.26,2393.2,2393.0,0.4058]
[1726419961406,3.26,2393.6,2393.0,0.4058]
[1726419961613,0.4177,2393.5,2393.1,1.51203989]
[1726419962114,0.41773,2393.3,2393.0,1.50008989]
[1726419962411,3.67774,2393.2,2393.0,1.50008989]
[1726419962617,3.62556,2393.1,2393.0,0.4058]
[1726419963709,3.62556,2393.1,2392.9,0.8212]
[1726419963710,3.2078,2393.1,2392.9,0.8212]
[1726419964112,3.62557,2393.1,2392.9,0.415]
[1726419964318,3.62557,2393.1,2393.0,0.4127]
[1726419964707,3.62557,2393.1,2392.9,0.415]
[1726419969427,0.41771,2393.4,2392.9,0.415]
[1726419969624,3.2078,2393.5,2392.9,0.83279]
[1726419969625,0.41772,2393.3,2392.9,0.83279]
[1726419969821,3.2078,2393.2,2392.9,0.415]
[1726419970020,3.62554,2393.2,2392.9,0.415]
[1726419970919,3.2078,2393.2,2392.9,0.83279]
[1726419971623,3.2078,2393.2,2392.9,0.415]
[1726419972819,0.41777,2393.1,2392.9,0.415]
[1726419974030,0.41777,2393.1,2393.0,1.09428989]
[1726419974226,0.41777,2393.1,2392.9,1.50928989]
[1726419975518,3.4431,2393.2,2392.9,1.50928989]
[1726419975821,0.41778,2393.0,2392.9,1.50928989]
[1726419977027,0.41777,2393.1,2392.9,1.50928989]
[1726419977232,3.2078,2393.2,2392.9,1.50928989]
[1726419977529,3.26,2393.5,2393.1,1.09428989]
[1726419977530,0.41773,2393.3,2393.1,1.09428989]
[1726419977718,6.4678,2393.5,2393.1,1.51204989]
[1726419978022,6.4678,2393.5,2393.1,1.51202989]
[1726419978023,3.2078,2393.5,2393.1,1.51202989]
[1726419978234,3.2078,2393.5,2393.2,0.3801]
[1726419978235,3.6255,2393.5,2393.2,0.3801]
[1726419978422,3.6255,2393.5,2393.3,0.3863]
[1726419978620,3.6255,2393.5,2393.4,0.3955]
[1726419980633,7.8039,2393.5,2393.4,0.3955]
[1726419980827,11.0639,2393.5,2393.4,0.3955]
[1726419981732,11.0639,2393.5,2393.1,1.09428989]
[1726419981733,0.41774,2393.2,2393.1,1.09428989]
[1726419981930,0.41774,2393.2,2393.0,1.64143483]
[1726419981931,0.41776,2393.1,2393.0,1.48948989]
[1726419982125,0.41776,2393.1,2393.0,0.3952]
[1726419982430,0.41776,2393.1,2392.8,1.09428989]
[1726419982431,0.41778,2393.0,2392.8,1.09428989]
[1726419982633,3.2078,2392.9,2392.8,1.88638989]
[1726419982832,3.2078,2392.9,2392.8,3.64375955]
[1726419983325,0.41777,2393.1,2392.8,3.64375955]
[1726419983635,3.62558,2393.0,2392.9,1.09428989]
[1726419984829,6.88558,2393.0,2392.9,1.09428989]
[1726419985131,6.88558,2393.0,2392.8,1.88638989]
[1726419987126,0.41779,2392.9,2392.8,1.88638989]
[1726419987332,0.41779,2392.9,2392.8,3.64475454]
[1726419987526,6.4678,2393.0,2392.8,3.64475454]
[1726419987527,6.88558,2393.0,2392.8,3.64475653]
[1726419987732,6.88558,2393.0,2392.8,1.88638989]
[1726419988130,6.88558,2393.0,2392.9,1.09428989]
[1726419988335,3.2078,2393.0,2392.9,1.09428989]
[1726419988532,3.2078,2393.0,2392.9,2.8530472]
[1726419989232,3.2078,2393.0,2392.9,0.41779]
[1726419989430,3.2078,2393.0,2392.8,1.2099]
[1726419989629,3.2078,2393.0,2392.8,1.20991]
[1726419989939,0.41775,2393.2,2392.8,0.7921]
[1726419991538,6.4678,2393.3,2392.8,0.7921]
[1726419991739,3.62559,2393.0,2392.8,0.7921]
[1726419992142,0.41779,2392.9,2392.8,0.7921]
[1726419992340,3.67779,2392.9,2392.8,0.3952]
[1726419994042,1.92779,2392.9,2392.8,0.3952]
[1726419994548,1.51,2392.9,2392.8,0.3952]
[1726419994740,1.92779,2392.9,2392.8,0.3952]
[1726419995950,3.67779,2392.9,2392.8,0.3952]
[1726419996157,3.67779,2392.9,2392.8,3.79428483]
[1726419996562,3.67779,2392.9,2392.8,1.49098494]
[1726419998655,6.88559,2392.9,2392.8,1.49098494]
[1726419999751,11.06479,2392.9,2392.8,1.49098494]
[1726419999953,11.06479,2392.9,2392.6,1.09578494]
[1726419999954,0.41783,2392.7,2392.6,1.09578494]
[1726420000257,0.41783,2392.7,2392.5,1.09578494]
[1726420000258,4.1792,2392.7,2392.5,1.09578494]
[1726420000556,6.4678,2392.6,2392.5,1.09578494]
[1726420000850,6.88565,2392.6,2392.5,1.09578494]
[1726420001060,0.41786,2392.5,2392.4,1.09578494]
[1726420001351,0.41786,2392.5,2392.3,1.86298494]
[1726420001352,0.41788,2392.4,2392.3,1.86298494]
[1726420001553,3.67788,2392.4,2392.3,1.86298494]
[1726420002056,3.67788,2392.4,2392.3,1.09578494]
[1726420002260,0.4179,2392.3,2392.2,1.09578494]
[1726420002557,3.6257,2392.3,2392.2,1.09578494]
[1726420002751,13.623,2392.3,2392.0,1.09578494]
[1726420002945,0.41793,2392.1,2392.0,1.09578494]
[1726420003351,0.41793,2392.1,2391.7,3.3675125]
[1726420003352,0.41795,2392.0,2391.8,1.09578494]
[1726420003555,0.41797,2391.9,2391.8,1.09578494]
[1726420004346,0.41797,2391.9,2391.7,1.1754]
[1726420004556,3.26,2391.8,2391.7,1.1754]
[1726420006156,3.67799,2391.8,2391.7,1.1754]
[1726420006358,3.67799,2391.8,2391.1,4.5671]
[1726420006359,0.41801,2391.7,2391.1,4.5671]
[1726420006565,3.62581,2391.7,2391.4,0.415]
[1726420006753,0.41802,2391.6,2391.4,0.415]
[1726420006954,3.2078,2391.7,2391.4,0.415]
[1726420006955,3.62581,2391.7,2391.4,0.415]
[1726420007158,0.41802,2391.6,2391.4,0.415]
[1726420007354,0.41802,2391.6,2391.2,0.3862]
[1726420007355,3.26,2391.5,2391.2,0.3862]
[1726420007557,6.4678,2391.3,2391.2,0.3862]
[1726420008464,6.4678,2391.3,2391.1,0.415]
[1726420008465,0.41809,2391.2,2391.1,0.415]
[1726420008762,0.41809,2391.2,2390.8,0.3862]
[1726420008763,4.1824,2391.2,2390.8,0.3862]
[1726420009064,3.26,2391.5,2390.8,0.3862]
[1726420009065,3.67814,2390.9,2390.8,0.3862]
[1726420009357,3.26,2390.9,2390.8,0.3862]
[1726420009553,7.86054,2390.9,2390.8,0.3862]
[1726420011964,4.1824,2390.9,2390.8,0.3862]
[1726420012164,7.4424,2390.9,2390.8,0.3862]
[1726420012363,3.26,2390.9,2390.8,0.3862]
[1726420015862,3.67814,2390.9,2390.8,0.3862]
[1726420016267,3.26,2390.9,2390.8,0.3862]
[1726420016863,3.67814,2390.9,2390.8,0.3862]
[1726420017367,3.26,2390.9,2390.8,0.3862]
[1726420017566,3.67814,2390.9,2390.8,0.3862]
[1726420017768,3.26,2390.9,2390.8,0.3862]
[1726420018770,1.28056,2391.4,2391.0,0.41811]
[1726420018771,3.26,2391.2,2391.0,0.41811]
[1726420018964,3.26,2391.2,2391.1,0.8071]
[1726420019268,6.88586,2391.4,2391.1,0.8071]
[1726420019972,6.4678,2391.4,2391.1,1.2252]
[1726420020362,6.4678,2391.4,2391.1,0.8071]
[1726420020667,3.26,2391.2,2391.1,0.8071]
[1726420020863,3.67809,2391.2,2391.1,0.8071]
[1726420021570,3.26,2391.2,2391.1,0.8071]
[1726420028171,3.67809,2391.2,2391.1,0.8071]
[1726420028368,3.26,2391.2,2391.1,0.8071]
[1726420028669,3.67809,2391.2,2391.1,0.8071]
[1726420028964,3.26,2391.2,2391.1,0.8071]
[1726420029266,7.4424,2391.2,2391.1,0.3961]
[1726420029465,7.86049,2391.2,2391.1,0.3961]
[1726420029665,3.26,2391.2,2391.1,0.3961]
[1726420032370,3.67809,2391.2,2391.1,0.3961]
[1726420033473,3.26,2391.2,2391.1,0.3961]
[1726420034674,6.4678,2391.2,2391.1,0.3961]
[1726420036071,3.26,2391.4,2391.2,0.41809]
[1726420036261,3.26,2391.4,2391.1,4.5785]
[1726420036262,3.26,2391.4,2391.3,0.7674]
[1726420042068,3.26,2391.4,2391.1,0.3961]
[1726420042069,0.41808,2391.3,2391.1,0.3961]
[1726420042374,6.4678,2391.2,2391.1,0.3961]
[1726420044276,0.41811,2391.1,2390.8,0.7898]
[1726420044481,6.4678,2390.9,2390.8,1.1778]
[1726420044688,6.4678,2390.9,2390.4,2.73721977]
[1726420044689,0.41817,2390.8,2390.4,2.73721977]
[1726420044870,0.41818,2390.7,2390.5,1.1741]
[1726420045177,3.2078,2390.8,2390.5,1.1741]
[1726420045367,3.2078,2390.8,2390.5,0.388]
[1726420045368,0.4182,2390.6,2390.5,0.388]
[1726420045569,3.2078,2390.8,2390.2,0.7861]
[1726420045570,0.41823,2390.5,2390.2,0.7861]
[1726420045778,3.26,2390.3,2390.2,1.2012]
[1726420047381,3.26,2390.3,2390.2,0.4151]
[1726420047973,3.67825,2390.3,2389.9,0.8009]
[1726420048174,3.2078,2390.1,2390.0,0.4151]
[1726420049673,6.4678,2390.1,2390.0,0.4151]
[1726420051379,3.26,2390.3,2390.0,0.4151]
[1726420051579,3.67822,2390.5,2390.0,0.83339]
[1726420051776,3.26,2390.3,2390.0,1.51088494]
[1726420051971,3.26,2390.1,2390.0,0.4151]
[1726420052176,2.63220493,2390.1,2390.0,0.4151]
[1726420052979,3.26,2390.3,2390.1,0.41827]
[1726420053476,3.6782,2390.6,2390.3,0.41824]
[1726420053681,3.26,2390.6,2390.4,1.197]
[1726420053883,3.26,2390.5,2390.4,1.197]
[1726420060083,6.88601,2390.5,2390.4,1.197]
[1726420060478,10.651,2390.5,2390.2,0.3987]
[1726420060688,3.67825,2390.3,2390.2,0.3987]
[1726420061294,0.41827,2390.2,2390.1,0.395]
[1726420061500,3.62607,2390.2,2390.1,0.395]
[1726420062399,7.3918,2390.2,2389.6,5.24478494]
[1726420062687,7.3918,2390.2,2389.5,2.27678494]
[1726420062688,3.26,2389.7,2389.5,2.27678494]
[1726420063786,3.26,2389.7,2389.5,2.69516494]
[1726420063987,3.26,2389.7,2389.5,2.27678494]
[1726420064388,3.26,2389.7,2389.5,1.181]
[1726420064688,3.26,2389.7,2389.5,1.59939]
[1726420064885,3.26,2389.7,2389.5,1.181]
[1726420065086,3.26,2389.7,2389.4,1.09578494]
[1726420065396,3.26,2389.7,2389.5,0.816]
[1726420067296,3.67835,2389.7,2389.5,0.816]
[1726420067499,3.67835,2389.7,2389.4,0.3917]
[1726420067500,3.26,2389.7,2389.3,0.41842]
[1726420067688,0.41843,2389.3,2389.1,0.3948]
[1726420068001,0.41843,2389.3,2388.8,1.09578494]
[1726420068002,0.41845,2389.2,2388.8,1.09578494]
[1726420068205,3.26,2389.0,2388.9,0.3948]
[1726420072993,3.2078,2389.1,2388.9,0.81329]
[1726420072994,6.4678,2389.1,2388.9,0.81329]
[1726420073197,6.4678,2389.1,2388.9,0.3948]
[1726420073596,6.4678,2389.1,2388.9,0.81329]
[1726420074092,6.4678,2389.1,2389.0,0.41848]
[1726420074503,3.26,2389.1,2389.0,0.41848]
[1726420074695,3.26,2389.3,2389.0,10.1856]
[1726420075006,3.26,2389.3,2388.9,0.3948]
[1726420075197,3.26,2389.3,2389.1,0.41844]
[1726420075391,3.26,2389.3,2389.2,0.81754]
[1726420076706,3.26,2389.3,2389.2,0.3991]
[1726420077400,3.26,2389.3,2389.2,0.81754]
[1726420078103,3.26,2389.3,2389.2,0.3991]
[1726420079302,3.26,2389.3,2389.2,0.81754]
[1726420079708,3.26,2389.3,2389.2,0.3991]
[1726420080209,3.26,2389.3,2389.2,0.8115]
[1726420084302,3.26,2389.3,2388.9,0.3948]
[1726420084506,3.26,2389.1,2388.9,0.3948]
[1726420084700,3.67846,2389.1,2388.9,0.3948]
[1726420084908,3.26,2389.1,2388.9,0.3948]
[1726420085205,6.52,2389.1,2388.7,0.7858]
[1726420085409,6.4678,2388.8,2388.7,0.7858]
[1726420086511,6.88631,2388.8,2388.7,0.7858]
[1726420086710,6.4678,2388.8,2388.7,0.7858]
[1726420087810,6.88631,2388.8,2388.4,4.149]
[1726420088009,3.62632,2388.8,2388.5,0.7861]
[1726420088205,3.26,2388.6,2388.3,0.3872]
[1726420088403,3.2078,2388.5,2388.3,0.3872]
[1726420088606,3.2078,2388.5,2388.0,4.149]
[1726420088607,3.26,2388.4,2388.0,4.149]
[1726420088801,3.26,2388.2,2388.1,0.3868]
[1726420089411,6.4678,2388.2,2388.1,0.3868]
[1726420091006,3.2078,2388.2,2388.1,0.80543]
[1726420092497,3.26,2388.6,2388.4,0.41857]
[1726420092702,3.26,2388.6,2388.5,0.4162]
[1726420093304,3.26,2388.8,2388.7,0.41853]
[1726420093498,3.2078,2389.4,2388.9,0.41848]
[1726420093499,3.26,2389.0,2388.9,0.41848]
[1726420093707,3.26,2389.0,2388.9,3.62628]
[1726420094009,3.26,2389.0,2388.9,7.81188]
[1726420094307,3.26,2389.1,2389.0,0.41848]
[1726420094520,0.62835,2389.8,2389.2,0.41843]
[1726420094699,3.26,2389.5,2389.4,0.41841]
[1726420094899,3.26,2389.7,2389.6,0.41837]
[1726420095314,3.26,2389.7,2389.6,4.60317]
[1726420095512,3.2078,2390.1,2389.6,4.1848]
[1726420095513,3.26,2389.9,2389.6,4.1848]
[1726420095703,3.26,2389.9,2389.7,0.41834]
[1726420096101,3.26,2389.9,2389.8,0.41834]
[1726420096811,3.26,2389.9,2389.7,0.41834]
[1726420097217,3.26,2389.9,2389.6,0.82716]
[1726420097412,3.26,2389.7,2389.6,0.82716]
[1726420098806,3.26,2389.7,2389.6,0.4088]
[1726420099914,3.26,2389.7,2389.4,0.4184]
[1726420100109,3.26,2389.5,2389.3,0.7687]
[1726420100312,3.2078,2389.8,2389.5,0.41838]
[1726420100313,3.26,2389.6,2389.5,0.41838]
[1726420103523,3.26,2389.6,2389.0,1.09578494]
[1726420103524,13.4448,2389.6,2389.0,1.09578494]
[1726420103713,3.26,2389.1,2388.7,0.4019]
[1726420103913,3.26,2388.9,2388.7,0.4019]
[1726420104614,10.6542,2388.9,2388.3,2.43063073]
[1726420104813,10.6542,2388.9,2388.3,1.33484579]
[1726420104814,3.26,2388.6,2388.3,1.33484579]
[1726420105018,3.26,2388.6,2388.4,0.41858]
[1726420105428,3.26,2388.6,2388.3,1.33484579]
[1726420105720,3.26,2388.6,2388.4,0.41857]
[1726420106118,3.26,2388.6,2388.5,0.41856]
[1726420106323,3.26,2388.6,2388.4,0.41858]
[1726420106517,3.26,2388.6,2388.3,1.75343579]
[1726420106825,3.26,2388.4,2388.3,1.75343579]
[1726420107724,3.26,2388.4,2388.3,0.41859]
[1726420107911,3.26,2388.4,2388.2,1.91629494]
[1726420108116,3.26,2388.4,2388.2,0.82051]
[1726420108413,3.26,2388.4,2388.1,0.41863]
[1726420108616,3.2078,2388.6,2388.1,0.41863]
[1726420108617,3.26,2388.2,2388.1,0.41863]
[1726420108924,3.26,2388.2,2388.1,1.51441494]
[1726420109110,3.26,2388.2,2388.1,5.70161494]
[1726420109318,3.26,2388.2,2388.1,1.51441494]
[1726420109718,3.26,2388.2,2388.1,5.70161494]
[1726420110224,3.26,2388.3,2388.1,5.28298494]
[1726420110422,3.26,2388.3,2388.2,0.41862]
[1726420110719,3.26,2388.3,2388.1,1.51441494]
[1726420112227,2.63173308,2388.3,2388.0,1.51442494]
[1726420112524,3.26,2388.1,2388.0,1.51442494]
[1726420112722,2.21284994,2388.1,2388.0,3.28951119]
[1726420113712,2.21284994,2388.1,2388.0,3.83516108]
[1726420114128,3.26,2388.2,2388.1,0.41863]
[1726420114324,3.26,2388.2,2388.1,1.51175297]
[1726420114520,3.26,2388.2,2388.1,5.69895297]
[1726420114726,3.26,2388.2,2388.1,4.60583]
[1726420115328,3.26,2388.2,2388.1,0.41863]
[1726420118220,3.26,2388.2,2388.0,1.51176297]
[1726420118421,3.26,2388.1,2388.0,0.41864]
[1726420118833,3.26,2388.1,2388.0,1.51176297]
[1726420119032,3.26,2388.1,2388.0,0.41864]
[1726420119222,3.26,2388.1,2388.0,1.51176297]
[1726420119425,3.26,2388.1,2388.0,0.41864]
[1726420119823,3.26,2388.1,2387.9,4.71958297]
[1726420120033,3.26,2388.1,2387.9,3.62646]
[1726420120230,3.26,2388.1,2387.9,4.71958297]
[1726420120435,3.26,2388.1,2387.9,3.62646]
[1726420120624,3.26,2388.1,2388.0,0.41865]
[1726420122731,3.26,2388.1,2387.9,3.62646]
[1726420122930,3.26,2388.1,2388.0,0.41865]
[1726420123228,3.26,2388.1,2387.9,3.2078]
[1726420123229,3.67864,2388.1,2387.9,3.2078]
[1726420123528,3.67864,2388.1,2387.7,1.51182297]
[1726420123529,3.67863,2388.1,2387.7,1.51182297]
[1726420123733,3.26,2387.8,2387.7,1.51182297]
[1726420125029,3.26,2387.8,2387.7,1.09312297]
[1726420125234,3.26,2387.8,2387.7,0.4187]
[1726420125941,3.26,2387.9,2387.8,0.41868]
[1726420129743,3.26,2387.9,2387.6,0.7783]
[1726420130040,3.26,2387.9,2387.8,0.41869]
[1726420130838,3.26,2387.9,2387.7,0.4187]
[1726420131142,3.26,2387.7,2387.6,1.19702]
[1726420131339,3.26,2387.7,2387.6,5.38502]
[1726420131942,3.26,2387.9,2387.8,0.41868]
[1726420133238,3.26,2388.2,2387.8,7.3958]
[1726420133441,3.26,2388.2,2388.0,0.41864]
[1726420133736,0.4186,2388.3,2388.1,0.3812]
[1726420133943,3.26,2388.2,2388.1,0.3812]
[1726420134845,3.26,2388.2,2387.9,0.41866]
[1726420135137,0.4186,2388.3,2387.7,0.7999]
[1726420135138,3.26,2388.0,2387.7,0.7999]
[1726420135341,0.41864,2388.1,2387.7,0.7999]
[1726420135342,3.26,2387.8,2387.7,0.7999]
[1726420136736,3.26,2387.8,2387.7,0.3812]
[1726420136940,3.26,2387.8,2387.7,0.7999]
[1726420138439,3.26,2387.8,2387.6,0.3891]
[1726420139539,3.26,2387.8,2387.6,0.80781]
[1726420140449,3.26,2387.8,2387.6,0.3891]
[1726420140945,3.67869,2387.8,2387.4,0.4082]
[1726420141141,3.67869,2387.8,2387.3,0.41876]
[1726420141142,3.26,2387.5,2387.3,0.3855]
[1726420141338,3.26,2387.5,2387.0,1.50342297]
[1726420141339,4.03697,2387.4,2387.0,1.50342297]
[1726420141542,3.26,2387.2,2387.1,0.41881]
[1726420142047,3.26,2387.2,2387.1,3.2078]
[1726420142254,3.26,2387.2,2387.0,0.4103]
[1726420142549,3.26,2387.2,2387.0,0.82912]
[1726420143142,3.26,2387.2,2387.0,0.4103]
[1726420143345,3.26,2387.1,2386.9,0.41883]
[1726420143545,3.26,2387.1,2386.9,0.4057]
[1726420144251,3.26,2387.1,2386.9,0.82454]
[1726420144950,3.26,2387.1,2386.9,0.4057]
[1726420145645,3.26,2387.1,2387.0,0.41883]
[1726420145845,3.26,2387.1,2386.9,0.82453]
[1726420146248,3.26,2387.1,2387.0,0.41883]
[1726420147347,3.26,2387.1,2386.9,1.91766297]
[1726420147553,3.26,2387.1,2387.0,0.41883]
[1726420148053,3.26,2387.1,2386.9,1.49882297]
[1726420148248,3.26,2387.1,2386.9,0.41884]
[1726420148550,3.26,2387.1,2386.8,5.12337297]
[1726420148751,3.26,2387.6,2386.9,4.1896]
[1726420148957,3.26,2387.6,2387.1,3.2078]
[1726420149144,3.26,2387.6,2387.4,0.41875]
[1726420149346,3.26,2387.6,2387.3,0.41877]
[1726420149851,3.26,2387.6,2387.4,0.41875]
[1726420150246,3.26,2387.8,2387.2,2.28842297]
[1726420150554,3.47,2388.2,2387.7,3.2078]
[1726420150748,3.26,2388.2,2387.9,0.41866]
[1726420151344,3.26,2388.2,2387.9,1.51178297]
[1726420151541,3.26,2388.2,2387.8,2.29242297]
[1726420151742,3.26,2388.2,2388.0,0.41864]
[1726420152147,3.26,2388.2,2387.9,1.51178297]
[1726420152551,3.26,2388.2,2388.0,0.41865]
[1726420152746,3.26,2388.2,2387.9,1.09312297]
[1726420152954,3.26,2388.3,2388.2,0.4186]
[1726420153156,3.26,2388.3,2388.0,4.30092297]
[1726420153157,3.2078,2388.4,2388.3,0.4186]
[1726420153356,3.2078,2388.4,2388.0,4.30092297]
[1726420153357,6.4678,2388.4,2388.1,0.41863]
[1726420153653,3.26,2388.2,2388.1,0.41862]
[1726420154251,3.26,2388.2,2388.0,1.51175297]
[1726420154447,3.26,2388.2,2387.9,1.09312297]